Cogmind - Beta 16.1 @@@ ROGUE MODE // 2026.03.08 @ 21:03:26 Player: Krysmphoenix Result: Destroyed by D-53 Grenadier with Mini Grenade Launcher Performance ------------- Evolutions (0) 0 Regions Visited (2) 400 Robots Destroyed (29) 145 Value Destroyed (538) 538 Prototype IDs (4) 80 Alien Tech Used (0) 0 Bonus (0) 0 TOTAL SCORE: 1163 Bonus ------- None Cogmind --------- Core Integrity 0/250 Matter 276/300 Energy 150/150 System Corruption 3% Temperature Warm (181) Movement Hovering (160) Ox1 Location -10/Mines Parts ------- > --- POWER (1) -------- Light Angular Momentum Engine > --- PROPULSION (2) --- Backup Propulsion III > --- UTILITY (2) ------ Targeting Computer Core Shielding > --- WEAPON (2) ------- Particle Gun Particle Gun > --- INVENTORY (5) ---- Tractor Beam Particle Gun Mining Laser Peak State ------------ > --- POWER ------------ Light Angular Momentum Engine > --- PROPULSION ------- Hover Unit Backup Propulsion III > --- UTILITY ---------- Targeting Computer Core Shielding > --- WEAPON ----------- Particle Gun Light Cannon > --- INVENTORY -------- Light Ion Engine Light Ion Engine Particle Gun Particle Gun Mining Laser [Rating: 14] Favorites ----------- Power Ion Engine Engine Ion Engine Propulsion Light Treads Treads Light Treads Wheel Wheel Hover Unit Backup Propulsion III Utility Small Storage Unit Device Improved Heat Sink Storage Small Storage Unit Processor Targeting Computer Protection Core Shielding Weapon Assault Rifle Energy Gun Particle Gun Ballistic Gun Assault Rifle Ballistic Cannon Light Cannon Special Weapon Mining Laser Build | -11 -10 -10 ------- Run | Yrd Mat Min Slots Evolved . | . . . Power . | . . . Propulsion . | . . . Utility . | . . . Weapon . | . . . Parts Attached 32 | 11 19 2 Power 5 | 1 3 1 Engine 5 | 1 3 1 Core . | . . . Reactor . | . . . Propulsion 11 | 6 5 . Treads 4 | 2 2 . Leg . | . . . Wheel 5 | 4 1 . Hover 2 | . 2 . Flight . | . . . Utility 6 | 2 4 . Device 3 | 1 2 . Storage 1 | 1 . . Processor 1 | . 1 . Hackware . | . . . Protection 1 | . 1 . Artifact . | . . . Weapon 10 | 2 7 1 Energy Gun 5 | . 4 1 Energy Cannon . | . . . Ballistic Gun 3 | 2 1 . Ballistic Cannon 1 | . 1 . Launcher . | . . . Special Weapon 1 | . 1 . Impact Weapon . | . . . Slashing Weapon . | . . . Piercing Weapon . | . . . Special Melee Weapon . | . . . Unidentified Prototypes . | . . . Parts Lost 4 | . 1 3 Power 1 | . . 1 Propulsion 2 | . 1 1 Utility . | . . . Weapon 1 | . . 1 Highest Loss Streak 3 | . 1 3 To Critical Strikes . | . . . Average Backups 4 | 2 4 4 Power . | . . 1 Propulsion . | . . . Utility . | . . . Weapon 2 | 1 2 2 Tool/Special . | . . . Unused Backups 7 | 1 4 2 Power 1 | . . 1 Propulsion 1 | 1 . . Utility 1 | . . 1 Weapon 4 | . 4 . Tool/Special . | . . . Average Slot Usage (%) 95 | . 94 99 Engine 13 | . 13 14 Treads 17 | . 21 . Wheel 1 | . 1 . Hover 6 | . 2 27 Device 9 | . 11 . Storage 10 | . 12 . Processor 3 | . 1 14 Protection 2 | . . 14 Energy Gun 11 | . 10 14 Ballistic Gun 9 | . 11 . Ballistic Cannon 6 | . 4 13 Peak Build Rating 14 | 9 13 14 Average Rating 9 | 6 9 10 On Entrance 6 | . 9 10 Avg Prop Armor Cover (%) 4 | . 4 . Naked Turns . | . . . Heaviest Build 17 | 15 17 16 Greatest Support 46 | 40 46 14 Greatest Overweight (x) 1 | . 1 1 Average Overweight (x) . | . . . Largest Inventory Capacity 8 | 8 8 5 Average Capacity 7 | 7 7 5 Most Carried 5 | 5 5 5 Average Carried 4 | 2 4 4 Final Capacity 8 | 8 5 5 Final Carried 5 | 3 5 3 Class Distribution -------------------- 100% | Mutant Dominant Class ---------------- Mutant | -10/Materials Mutant | -10/Mines Resources | -11 -10 -10 ----------- Run | Yrd Mat Min Matter Collected 936 | 442 402 92 Remotely . | . . . Salvage Created 887 | 276 516 95 Parts 51 | 17 29 5 Haulers Intercepted . | . . . Recyclers Shooed . | . . . Parts Field Recycled . | . . . Retrieved Matter . | . . . Parts Self-Destructed . | . . . Prevented . | . . . Parts Restored . | . . . Kills | -11 -10 -10 ------- Run | Yrd Mat Min Combat Hostiles Destroyed 13 | . 10 3 Guns 9 | . 7 2 Cannons 3 | . 2 1 AOE 1 | . 1 . Classes Destroyed 6 | 3 2 1 Worker 3 | 2 1 . Tunneler 8 | 8 . . Recycler 2 | 1 . 1 Watcher 3 | . 3 . Swarmer 3 | . . 3 Grunt 10 | . 10 . Best Kill Streak 5 | 5 3 4 Combat Bots Only 3 | . 2 3 Max Kills in Single Turn 2 | 2 1 1 Gunslinging . | . . . Exploded 1 | . 1 . Melee . | . . . Uniques/NPCs Destroyed . | . . . Combat | -11 -10 -10 -------- Run | Yrd Mat Min Hostile Shots Fired 63 | . 43 20 Missed 16 | . 12 4 Hits 47 | . 31 16 Projectile 47 | . 31 16 AOE 11 | . . 11 Critical Strikes 1 | . 1 . Damage Taken 961 | . 442 519 Core 251 | . 40 211 Absorbed by Shields . | . . . Redirected to Shielding 47 | . . 47 Core Remaining (%) 100 | 100 . . Volleys Fired 67 | 22 35 10 Largest 2 | 2 2 2 Hottest 130 | 40 100 130 Shots Fired 126 | 44 62 20 Gun 109 | 44 53 12 Cannon 14 | . 6 8 Launcher . | . . . Special 3 | . 3 . Kinetic 103 | 44 51 8 Thermal 15 | . 3 12 Explosive . | . . . Electromagnetic 8 | . 8 . Robot Hit Streak 10 | 10 8 5 Robot Miss Streak 3 | 3 2 3 Penetration Max . | . . . Secondary Targets . | . . . Shots Hit Robots 77 | 27 39 11 Core Hits 40 | 12 23 5 Critical Kills . | . . . Critical Parts Destroyed . | . . . Critical Strikes . | . . . Melee Attacks . | . . . Impact . | . . . Slashing . | . . . Piercing . | . . . Sneak Attacks . | . . . Combat Hostiles . | . . . Follow-up Attacks . | . . . Damage Inflicted 1110 | 350 591 169 Guns 898 | 350 431 117 Cannons 143 | . 91 52 Explosions 69 | . 69 . Melee . | . . . Ramming . | . . . Kinetic 866 | 350 464 52 Thermal 186 | . 69 117 Explosive . | . . . Electromagnetic 58 | . 58 . Impact . | . . . Slashing . | . . . Piercing . | . . . Highest Corruption 3 | . 3 3 Average Corruption 1 | . 1 3 Corruption Purged . | . . . Corruption Blocked . | . . . Effects 23 | . 18 5 Message Errors 5 | . 5 . Matter Fused 8 | . 5 3 Heat Flow Errors 2 | . 2 . Energy Discharges 1 | . 1 . Parts Fused 1 | . 1 . Data Loss (minor) 3 | . 1 2 Data Loss (major) 2 | . 2 . Misfires 1 | . 1 . Overload Shots . | . . . Overflow Damage . | . . . Projectiles . | . . . Explosions . | . . . Melee . | . . . Knockbacks 2 | . 1 1 Impact . | . . . Kinetic 2 | . 1 1 Secondary . | . . . Self-Inflicted Damage 50 | . 50 . Shots 1 | . 1 . Rammed . | . . . Targets Rammed . | . . . Kicked . | . . . Crushed . | . . . Highest Temperature 234 | . 234 181 Average Temperature 65 | . 101 52 Received Heat Transfer 240 | . 240 . Siege Activations . | . . . Martial Activations . | . . . Shielding Activations . | . . . Robots Disrupted . | . . . Combat Hostiles . | . . . Robots Corrupted . | . . . Combat Hostiles . | . . . Parts Fried . | . . . Impact Corruptions . | . . . Robots Melted . | . . . Combat Hostiles . | . . . Parts Melted 1 | . . 1 Heat Transferred 396 | . 100 296 Parts Sabotaged . | . . . Parts Stolen . | . . . Parts Stripped . | . . . Power Chain Reactions 1 | . 1 . Alert | -11 -10 -10 ------- Run | Yrd Mat Min Maximum Alert Level . | . . . Low Security (%) 100 | 100 100 100 Level 1 . | . . . Level 2 . | . . . Level 3 . | . . . Level 4 . | . . . Level 5 . | . . . High Security . | . . . Max Security . | . . . Peak Influence 81 | 20 81 51 Initial 12 | . . 12 Average 17 | 2 20 10 Influence Increases 490 | 55 339 96 Destroy 0b10 Robot/C 260 | . 200 60 Destroy 0b10 Robot/NC 80 | 55 20 5 Destroy Leader 66 | . 56 10 Allied During Kill 6 | . . 6 Successful Hack 39 | . 39 . Disable Machine 15 | . 15 . Destroy Structure 9 | . 9 . Lose Combat Pursuer 15 | . . 15 Influence Decreases 490 | 55 306 129 Entered New Map 21 | . . 21 Time Decay 429 | 55 296 78 Lost Part 20 | . 10 10 Lost Ally 20 | . . 20 Squads Dispatched 2 | . 2 . Investigation 1 | . 1 . Extermination . | . . . Reinforcement 1 | . 1 . Assault . | . . . Garrison . | . . . Intercept . | . . . Searches Triggered . | . . . Construction Impeded . | . . . Haulers Reinforced . | . . . Active Scanning Responses . | . . . Cargo Convoy Interrupts . | . . . Stealth | -11 -10 -10 --------- Run | Yrd Mat Min Distress Signals 1 | . 1 . Communications Jammed . | . . . Distress Signals . | . . . Times Spotted 23 | . 15 8 Peak Tracking Total 16 | . 4 16 Tactical Retreats 2 | . . 2 Traps | -11 -10 -10 ------- Run | Yrd Mat Min Traps Triggered 4 | . 4 . Indirectly . | . . . Trap Hack Attempts . | . . . Triggered . | . . . Disarmed . | . . . Reprogrammed . | . . . Reused . | . . . Traps Extracted . | . . . Installed . | . . . Triggered . | . . . Machines | -11 -10 -10 ---------- Run | Yrd Mat Min Machines Disabled 2 | . 2 . Max in Single Turn 1 | . 1 . Machines Repaired . | . . . Machines Dismantled . | . . . Machines Sabotaged . | . . . Overloaded Fab Kills . | . . . Hacking | -11 -10 -10 --------- Run | Yrd Mat Min Machines Accessed 11 | . 11 . Terminals 8 | . 8 . Fabricators . | . . . Repair Stations 1 | . 1 . Recycling Units 2 | . 2 . Scanalyzers . | . . . Garrison Access . | . . . Total Hacks 36 | . 36 . Successful 20 | . 20 . Failed 16 | . 16 . Catastrophic 1 | . 1 . Database Lockouts . | . . . Manual 20 | . 20 . Terminals 28 | . 28 . Fabricators . | . . . Repair Stations 5 | . 5 . Recycling Units 3 | . 3 . Scanalyzers . | . . . Garrison Access . | . . . Terminal Hacks 6 | . 6 . Prototype ID Bank 2 | . 2 . Branch Access Points 1 | . 1 . Alert Level 1 | . 1 . Locate Traps 1 | . 1 . Maintenance Status 1 | . 1 . Fabricator Hacks . | . . . Repair Station Hacks 1 | . 1 . Refit 1 | . 1 . Recycling Unit Hacks 3 | . 3 . Report Inventory 2 | . 2 . Retrieve Matter 1 | . 1 . Scanalyzer . | . . . Garrison Access Hacks . | . . . Unauthorized Hacks 10 | . 10 . Terminals 10 | . 10 . Assimilate 3 | . 3 . Botnet 7 | . 7 . Fabricators . | . . . Repair Stations . | . . . Recycling Units . | . . . Scanalyzers . | . . . Garrison Access . | . . . Data Cores Recovered . | . . . Used . | . . . Hacking Detections 8 | . 8 . Full Trace Events 1 | . 1 . Feedback Events . | . . . Feedback Blocked . | . . . Robot Schematics Acquired . | . . . Robots Built . | . . . Authchips . | . . . Time . | . . . Total Robot Build Rating . | . . . Part Schematics Acquired . | . . . Parts Built . | . . . Authchips . | . . . Time . | . . . Total Part Build Rating . | . . . Part Studies Acquired . | . . . Parts Repaired . | . . . Time . | . . . Parts Recycled . | . . . Recycled Matter . | . . . Retrieved Matter . | . . . Retrieved Components . | . . . Parts Scanalyzed . | . . . Part Schematics Acquired . | . . . Parts Damaged . | . . . Bothacking | -11 -10 -10 ------------ Run | Yrd Mat Min Used RIF Installer . | . . . Robots Hacked . | . . . Non-combat . | . . . Combat . | . . . Robot Hacks Applied . | . . . Relay Couplers Released . | . . . Fabnet Peak Effective % . | . . . Robots Rewired . | . . . Allies Hacked . | . . . Hacks Repelled . | . . . Allies | -11 -10 -10 -------- Run | Yrd Mat Min Total Allies 2 | . . 2 Largest Group 2 | . . 2 Highest-Rated Group 41 | . . 41 Highest-Rated Ally 31 | . . 31 Total Orders . | . . . Ally Attacks 9 | . . 9 Total Damage 107 | . . 107 Kills . | . . . Allies Corrupted . | . . . Allies Melted . | . . . Intel | -11 -10 -10 ------- Run | Yrd Mat Min Active Infowar (turns) 339 | 111 228 . Terrain 339 | 111 228 . Robot Analysis Total . | . . . Derelict Logs Recovered . | . . . Drone Launches . | . . . Drone Recoveries . | . . . Exploration | -11 -10 -10 ------------- Run | Yrd Mat Min Turns Passed 2084 | 270 1513 301 Spaces Moved 1467 | 189 955 323 Core 5 | 5 . . Treads 655 | 15 640 . Legs . | . . . Wheels 325 | 169 156 . Hover 482 | . 159 323 Flight . | . . . Fastest Speed 50 | 50 66 66 Average Speed 115 | 92 136 66 Slowest Speed 160 | 160 160 160 Overloaded Moves . | . . . Propulsion Burnouts . | . . . Robots Hopped . | . . . Potential Cave-ins . | . . . Cave-ins Triggered . | . . . Exploration Rate (%) 53 | 6 99 55 Regions Visited 2 Branch Regions 1 Pre-discovered Areas 1 | . . 1 Known Exits Taken 1 | . 1 . Unknown Exits Taken 1 | 1 . . Scrap Searched . | . . . Spaces Dug 3 | . 3 . Terrain Destroyed 7 | . 7 . Melee . | . . . Projectile 3 | . 3 . AOE 4 | . 4 . Terrain Rammed . | . . . Walls Destroyed . | . . . Machines Disabled . | . . . Actions | -11 -10 -10 --------- Run | Yrd Mat Min Total 1733 | 241 1104 388 Wait 91 | . 44 47 Move 1465 | 188 954 323 Hop . | . . . Pick Up 43 | 15 26 2 Fast Attach . | . . . Attach 19 | 7 10 2 Detach . | . . . Swap 20 | 4 14 2 Drop 28 | 5 21 2 Fire 67 | 22 35 10 Melee . | . . . Ram . | . . . Kick . | . . . Crush . | . . . Escape Stasis . | . . . Rewire . | . . . Trap . | . . . Miscellaneous . | . . . Route ------- -11/Scrapyard -10/Materials (discovered 6 exits: [*Mat x3] / *Min x2 / [*Sub]) -10/Mines (discovered 1 exit: [*Mat]) History --------- Turn | Location | Event 14 | -11/Scrapyard | Discovered new exit (range 15) 271 | -11/Scrapyard | Entered Materials 302 | -10/Materials | Identified exit to Mines 310 | -10/Materials | Build established: Mutant 475 | -10/Materials | Discovered new exit (range 12) 884 | -10/Materials | Discovered new exit (range 16) 973 | -10/Materials | Discovered new exit (range 11) 1277 | -10/Materials | Discovered new exit (range 6) 1784 | -10/Materials | Entered Mines 1860 | -10/Mines | Discovered new exit (range 11) 1865 | -10/Mines | Learned location of Storage (-9) 2027 | -10/Mines | Assembled infested the area 2076 | -10/Mines | Core integrity fell below 50% 2080 | -10/Mines | Core integrity fell below 20% 2085 | -10/Mines | Destroyed by D-53 Grenadier with Mini Grenade Launcher Last Messages --------------- 01950_ Acquired Tractor Beam. 01952_ Acquired 92 matter. 02023_ T-07 Excavator is excavating. 02027_ ALERT: Infestation in the mines, dispatching Demolisher response squad. 02027_ T-07 Excavator is excavating. 02030_ U-05 Engineer lays Concrete. 02031_ U-05 Engineer builds a Wall. 02031_ T-07 Excavator is excavating. 02031_ K-01 Serf collects debris. 02042_ C-45 Heavy ARC bursts open, deploying its payload. 02042_ D-53 Grenadier unfolds itself. 02068_ Hover Unit destroyed. 02070_ Lgt. Ion Engine destroyed. 02075_ R-06 Scavenger destroyed. 02076_ The unstable cave ceiling collapses. 02077_ Lgt. Cannon destroyed. 02079_ Destroyed Shock Absorption System. 02083_ System corrupted: Matter fused (-5). Map ----- +----------------------------------------------------+ | ##??????????????????????????????????? | | ##?????????????????????????????????? | | ###???????????????????????????????? | | ##??????????????????????????????? | | #####??????????????????????????? | | # #??????????????????????????? | | ## ## ######?????????????????????? | | ?# ### #?????????????????????? | | ?######?# #### #??????##?????????????? | | ????????# #??# #?????# ?????????????? | | ????????# #??# #????? ?????????????? | | ????????# #??# #????? ?????????????? | | ????????# #??# #?????# ?????????????? | | ?????#### #### #?????# #?????????????? | | ##??## ##????# #?????????????? | | ## ##???# #?????????????? | | ?#%" ##??# #?????????????? | | ?# ## #### ## #?????????? | | ?# ## %% % #?????????? | | ?# ## #### ######?????????? | | ?# ## #######??# ##########?????? | | ?##### ?# #????????# # # # ##????? | | ?????# ??# #????????# #????? | | ?????# ??# #????????# #????? | | ?????# ?## ########## #????? | | ?????# # ## !d@ ##????? | | ?????# # """ ### = #???? | | ?????# """ ## ! ##???? | | #????#### < """ ### #????? | | ##??????# #?## # ##????? | | ##?????## ########??######## #?????? | | #??????# #????????####????# #?????? | | #???#### #####???## ###### #?????? | | #????# ## ##??# #?????? | | ##???# #??# #######?????? | | ##### #### #??# ##??????????? | | ## ##?## #??# #??????????? | | #??## ##?# #??????????? | | ### #???# #?# #??????????? | | #?## ##??## #?## #??????????? | | #??#######??## #??## ##??????????? | | #???????????# #???####???????????? | | #???????????# #??????????????????? | | #???????##### ##??????????????????? | | #??????## ## ##???????????????????? | | ###????# ##????????????????????? | | #????# ##?????????????????????? | | # #????## ##???####???????????????? | | # ####??## ##???## ##??????????????? | | # #???####????# ##?????????????? | +----------------------------------------------------+ Best States ------------- Heat Dissipation 39 Energy Generation 18 Energy Capacity 250 Matter Stores 300 Matter Capacity 300 Sight Range 16 Terrain Scan Range 16 Terrain Scan Density 10 Core Shielding 20 Evasion (%) 51 Targeting Accuracy 5 Recoil Reduction 2 Item Schematics ----------------- None Robot Schematics ------------------ None Fabricated ------------ Nothing Repaired ---------- Nothing Studied --------- None Alien Tech Used ----------------- None Achievements -------------- None Challenges ------------ None Game ------ Seed GlidesysPowerDrillbomb Manual? 0 Play Time 00:20:36 Cumulative 15.3 hours Start 2026.03.08 @ 20:45:49 End 2026.03.08 @ 21:03:26 Sessions 1 Manual Loads 0 Difficulty Rogue Special Mode None Game No. 29 Rogue 26 Adventurer 3 Explorer 0 Win Type - Total 1 Types 1/0/0/0/0/0/0/0/0/0 Lore% 21 Gallery% 17 Achievement% 20 Wizard Run 0 Options --------- Layout 1 ASCII 0 Keyboard 0 Movement Numpad Keybinds 0 Fullscreen 2 Font 24/Proggy Map View 50x35 Zoom Use 0% Tactical HUD 1 Map Filters NONE Filters NONE Steam 1 RUN: 94ac62bf-c942-4305-80fc-6fd903e3f5c4